Cogmind - Beta 9.6 @@@ ROGUE MODE // 2020.06.13 @ 09:03:45 Player: Teratos Result: Destroyed by G-47 Trooper with Particle Gun Performance ------------- Evolutions (2) 1000 Regions Visited (3) 600 Robots Destroyed (22) 110 Value Destroyed (599) 599 Prototype IDs (2) 40 Alien Tech Used (0) 0 Bonus (0) 0 TOTAL SCORE: 2349 Bonus ------- None Cogmind --------- Core Integrity 0/550 Matter 279/300 Energy 100/100 System Corruption 0% Temperature Cool (9) Movement Core (50) Location -8/Materials Parts ------- > --- POWER (1) -------- (None) > --- PROPULSION (3) --- (None) > --- UTILITY (3) ------ (None) > --- WEAPON (4) ------- (None) > --- INVENTORY (4) ---- (None) Peak State ------------ > --- POWER ------------ Improved Ion Engine > --- PROPULSION ------- Light Treads Improved Treads Wheel > --- UTILITY ---------- Cooling System Medium Armor Plating > --- WEAPON ----------- Beam Rifle Beam Rifle Beam Rifle Heavy Particle Cannon > --- INVENTORY -------- Light Ion Engine [Rating: 19] Favorites ----------- Power Ion Engine Engine Ion Engine Propulsion Light Treads Treads Light Treads Leg Aluminum Leg Wheel Wheel Utility Small Storage Unit Device Cooling System Storage Small Storage Unit Protection Medium Armor Plating Weapon Medium Laser Energy Gun Medium Laser Energy Cannon Heavy Particle Cannon Ballistic Gun Assault Rifle Build | -11 -10 -9 -8 ------- Run | Scr Mat Mat Mat Slots Evolved 4 | . . 2 2 Power . | . . . . Propulsion 1 | . . 1 . Utility 1 | . . . 1 Weapon 2 | . . 1 1 Parts Attached 43 | 6 8 5 24 Power 4 | 1 1 1 1 Engine 4 | 1 1 1 1 Core . | . . . . Reactor . | . . . . Propulsion 6 | 2 . 1 3 Treads 3 | 2 . . 1 Leg 2 | . . . 2 Wheel 1 | . . 1 . Hover . | . . . . Flight . | . . . . Utility 4 | 1 1 2 . Device 2 | . 1 1 . Storage 1 | 1 . . . Processor . | . . . . Hackware . | . . . . Protection 1 | . . 1 . Artifact . | . . . . Weapon 29 | 2 6 1 20 Energy Gun 22 | 1 6 1 14 Energy Cannon 2 | . . . 2 Ballistic Gun 5 | 1 . . 4 Ballistic Cannon . | . . . . Launcher . | . . . . Special Weapon . | . . . . Impact Weapon . | . . . . Slashing Weapon . | . . . . Piercing Weapon . | . . . . Special Melee Weapon . | . . . . Unidentified Prototypes . | . . . . Parts Lost 30 | . 3 . 27 Power 2 | . . . 2 Propulsion 5 | . 1 . 4 Utility 2 | . . . 2 Weapon 21 | . 2 . 19 Highest Loss Streak 18 | . 2 . 18 Average Slot Usage (%) 66 | . 77 84 46 Engine 9 | . 14 11 3 Treads 13 | . 23 11 4 Leg 2 | . . . 4 Wheel 2 | . . 9 1 Device 4 | . 1 11 4 Storage 5 | . 14 2 . Protection 2 | . . 7 3 Energy Gun 19 | . 16 31 17 Energy Cannon 1 | . . . 3 Ballistic Gun 4 | . 7 . 3 Naked Turns 8 | . . . 8 Heaviest Build 31 | 11 14 22 31 Greatest Support 43 | 40 40 20 43 Greatest Overweight (x) 8 | . . 2 8 Average Overweight (x) . | . . 1 1 Largest Inventory Capacity 6 | 6 6 6 4 Average Capacity 4 | 5 6 4 4 Most Carried 2 | . 1 2 2 Average Carried . | . . 1 . Final Capacity 6 | 6 6 4 4 Final Carried 1 | . 1 1 . Class Distribution -------------------- 51% | Mutant 30% | Tank 18% | Gunner Dominant Class ---------------- Mutant | -10/Materials Tank | -9/Materials Gunner | -8/Materials Resources | -11 -10 -9 -8 ----------- Run | Scr Mat Mat Mat Matter Collected 665 | 138 176 157 194 Remotely . | . . . . Salvage Created 782 | . 176 77 529 Parts 54 | . 11 9 34 Haulers Intercepted . | . . . . Recyclers Shooed . | . . . . Parts Field Recycled . | . . . . Retrieved Matter . | . . . . Parts Self-Destructed . | . . . . Prevented . | . . . . Kills | -11 -10 -9 -8 ------- Run | Scr Mat Mat Mat Combat Hostiles Destroyed 18 | . 4 . 14 Guns 16 | . 4 . 12 Cannons 2 | . . . 2 Classes Destroyed 6 | . 2 1 3 Builder 2 | . . 1 1 Watcher 2 | . 1 1 . Swarmer 6 | . . . 6 Grunt 9 | . 4 . 5 Brawler 1 | . . . 1 Sentry 2 | . . . 2 Best Kill Streak 7 | . 3 1 7 Combat Bots Only 6 | . 2 . 6 Max Kills in Single Turn 2 | . 1 1 2 Gunslinging . | . . . . Exploded . | . . . . Melee . | . . . . Uniques/NPCs Destroyed . | . . . . Combat | -11 -10 -9 -8 -------- Run | Scr Mat Mat Mat Damage Taken 2894 | . 482 . 2412 Core 610 | . 56 . 554 Absorbed by Shields . | . . . . Core Remaining (%) 92 | 100 77 100 . Volleys Fired 97 | . 34 7 56 Largest 4 | . 2 3 4 Hottest 243 | . 100 150 243 Shots Fired 186 | . 56 21 109 Gun 176 | . 56 21 99 Cannon 10 | . . . 10 Launcher . | . . . . Special . | . . . . Kinetic 71 | . 32 . 39 Thermal 115 | . 24 21 70 Explosive . | . . . . Electromagnetic . | . . . . Robot Hit Streak 15 | . 9 3 15 Robot Miss Streak 6 | . 6 5 3 Penetration Max . | . . . . Secondary Targets 1 | . 1 . . Max Gunslinging Chain 1 | . 1 . . Shots Hit Robots 112 | . 35 9 68 Core Hits 43 | . 10 4 29 Critical Hits . | . . . . Critical Kills . | . . . . Critical Parts Destroyed . | . . . . Melee Attacks . | . . . . Impact . | . . . . Slashing . | . . . . Piercing . | . . . . Sneak Attacks . | . . . . Combat Hostiles . | . . . . Follow-up Attacks . | . . . . Damage Inflicted 1493 | . 440 100 953 Guns 1270 | . 440 100 730 Cannons 223 | . . . 223 Explosions . | . . . . Melee . | . . . . Ramming . | . . . . Kinetic 456 | . 253 . 203 Thermal 1037 | . 187 100 750 Explosive . | . . . . Electromagnetic . | . . . . Impact . | . . . . Slashing . | . . . . Piercing . | . . . . Highest Corruption . | . . . . Average Corruption . | . . . . Corruption Purged . | . . . . Overload Shots . | . . . . Overflow Damage . | . . . . Projectiles . | . . . . Explosions . | . . . . Melee . | . . . . Knockbacks . | . . . . Impact . | . . . . Kinetic . | . . . . Secondary . | . . . . Self-Inflicted Damage . | . . . . Shots . | . . . . Rammed . | . . . . Targets Rammed . | . . . . Kicked . | . . . . Crushed . | . . . . Highest Temperature 364 | . 246 27 364 Average Temperature 88 | . 89 14 100 Received Heat Transfer 1191 | . 192 . 999 Effects 5 | . 1 . 4 Shutdowns 1 | . . . 1 Energy Bleed 1 | . 1 . . Interference 2 | . . . 2 Short Circuit 1 | . . . 1 Siege Activations . | . . . . Robots Corrupted . | . . . . Combat Hostiles . | . . . . Parts Fried . | . . . . Impact Corruptions . | . . . . Robots Melted . | . . . . Combat Hostiles . | . . . . Parts Melted 4 | . 2 . 2 Heat Transferred 2546 | . 555 296 1695 Parts Sabotaged . | . . . . Parts Stolen . | . . . . Parts Stripped . | . . . . Power Chain Reactions . | . . . . Missiles Intercepted . | . . . . Alert | -11 -10 -9 -8 ------- Run | Scr Mat Mat Mat Peak Influence 197 | . 157 120 197 Average Influence 91 | . 112 87 86 Maximum Alert Level . | . . . . Low Security (%) 100 | 100 100 100 100 Level 1 . | . . . . Level 2 . | . . . . Level 3 . | . . . . Level 4 . | . . . . Level 5 . | . . . . High Security . | . . . . Max Security . | . . . . Squads Dispatched 8 | . 2 1 5 Investigation . | . . . . Extermination . | . . . . Reinforcement 5 | . 2 1 2 Assault . | . . . . Garrison 3 | . . . 3 Intercept . | . . . . Construction Impeded 1 | . . . 1 Haulers Reinforced . | . . . . Stealth | -11 -10 -9 -8 --------- Run | Scr Mat Mat Mat Distress Signals 2 | . 2 . . Communications Jammed . | . . . . Distress Signals . | . . . . Times Spotted 39 | . 18 4 17 Peak Tracking Total 8 | . 5 2 8 Tactical Retreats . | . . . . Traps | -11 -10 -9 -8 ------- Run | Scr Mat Mat Mat Traps Triggered 1 | . 1 . . Indirectly . | . . . . Trap Hack Attempts . | . . . . Triggered . | . . . . Disarmed . | . . . . Reprogrammed . | . . . . Reused . | . . . . Traps Extracted . | . . . . Installed . | . . . . Triggered . | . . . . Machines | -11 -10 -9 -8 ---------- Run | Scr Mat Mat Mat Machines Disabled . | . . . . Max in Single Turn . | . . . . Machines Sabotaged . | . . . . Garrisons Compromised . | . . . . Overloaded Fab Kills . | . . . . Fab Network Shutdowns . | . . . . Hacking | -11 -10 -9 -8 --------- Run | Scr Mat Mat Mat Machines Accessed 4 | . 1 1 2 Terminals 4 | . 1 1 2 Fabricators . | . . . . Repair Stations . | . . . . Recycling Units . | . . . . Scanalyzers . | . . . . Garrison Access . | . . . . Total Hacks 7 | . 2 1 4 Successful 2 | . . 1 1 Failed 5 | . 2 . 3 Catastrophic 2 | . 1 . 1 Database Lockouts . | . . . . Manual . | . . . . Terminals 7 | . 2 1 4 Fabricators . | . . . . Repair Stations . | . . . . Recycling Units . | . . . . Scanalyzers . | . . . . Garrison Access . | . . . . Terminal Hacks 2 | . . 1 1 Robot Analysis 1 | . . . 1 Prototype ID Bank 1 | . . 1 . Fabricator Hacks . | . . . . Repair Station Hacks . | . . . . Recycling Unit Hacks . | . . . . Scanalyzer . | . . . . Garrison Access Hacks . | . . . . Unauthorized Hacks . | . . . . Terminals . | . . . . Fabricators . | . . . . Repair Stations . | . . . . Recycling Units . | . . . . Scanalyzers . | . . . . Garrison Access . | . . . . Data Cores Recovered . | . . . . Used . | . . . . Hacking Detections 3 | . 1 . 2 Full Trace Events 1 | . . . 1 Feedback Events . | . . . . Feedback Blocked . | . . . . Robot Schematics Acquired . | . . . . Robots Built . | . . . . Matter . | . . . . Time . | . . . . Total Robot Build Rating . | . . . . Part Schematics Acquired . | . . . . Parts Built . | . . . . Matter . | . . . . Time . | . . . . Total Part Build Rating . | . . . . Parts Repaired . | . . . . Time . | . . . . Parts Recycled . | . . . . Recycled Matter . | . . . . Retrieved Matter . | . . . . Retrieved Components . | . . . . Parts Scanalyzed . | . . . . Part Schematics Acquired . | . . . . Parts Damaged . | . . . . Bothacking | -11 -10 -9 -8 ------------ Run | Scr Mat Mat Mat Used RIF Installer . | . . . . Robots Hacked . | . . . . Non-combat . | . . . . Combat . | . . . . Robot Hacks Applied . | . . . . Relay Couplers Released . | . . . . Robots Rewired . | . . . . Allies Hacked . | . . . . Hacks Repelled . | . . . . Allies | -11 -10 -9 -8 -------- Run | Scr Mat Mat Mat Total Allies . | . . . . Largest Group . | . . . . Highest-Rated Group . | . . . . Highest-Rated Ally . | . . . . Total Orders . | . . . . Ally Attacks . | . . . . Total Damage . | . . . . Kills . | . . . . Allies Corrupted . | . . . . Allies Melted . | . . . . Intel | -11 -10 -9 -8 ------- Run | Scr Mat Mat Mat Robot Analysis Total 1 | . . . 1 Derelict Logs Recovered . | . . . . Drone Launches . | . . . . Drone Recoveries . | . . . . Exploration | -11 -10 -9 -8 ------------- Run | Scr Mat Mat Mat Turns Passed 1090 | 61 399 215 415 Spaces Moved 536 | 35 168 178 155 Core 45 | 3 . . 42 Treads 233 | 32 168 17 16 Legs 22 | . . . 22 Wheels 236 | . . 161 75 Hover . | . . . . Flight . | . . . . Fastest Speed 50 | 50 160 90 50 Average Speed 127 | 150 160 100 116 Slowest Speed 450 | 160 160 160 450 Overloaded Moves . | . . . . Propulsion Burnouts . | . . . . Robots Hopped . | . . . . Cave-ins Triggered . | . . . . Exploration Rate (%) 15 | 4 30 16 12 Regions Visited 3 Branch Regions . Pre-discovered Areas . | . . . . Known Exits Taken . | . . . . Unknown Exits Taken 3 | 1 1 1 . Scrap Searched . | . . . . Spaces Dug . | . . . . Terrain Destroyed 1 | . . . 1 Melee . | . . . . Projectile 1 | . . . 1 AOE . | . . . . Actions | -11 -10 -9 -8 --------- Run | Scr Mat Mat Mat Total 772 | 40 240 197 295 Wait 82 | . 27 . 55 Move 533 | 34 167 177 155 Hop . | . . . . Pick Up . | . . . . Fast Attach 39 | 6 7 4 22 Attach 2 | . . . 2 Detach 1 | . . . 1 Swap 2 | . 1 1 . Drop 11 | . 4 3 4 Fire 97 | . 34 7 56 Melee . | . . . . Ram . | . . . . Kick . | . . . . Crush . | . . . . Escape Stasis . | . . . . Rewire 5 | . . 5 . Trap . | . . . . Miscellaneous . | . . . . Route ------- -11/Scrapyard -10/Materials -9/Materials -8/Materials History --------- Turn | Location | Event 4 | -11/Scrapyard | Discovered new exit (range 16) 62 | -11/Scrapyard | Entered Materials 315 | -10/Materials | Build established: Mutant 422 | -10/Materials | Discovered new exit (range 16) 461 | -10/Materials | Entered another Materials area 461 | -9/Materials | Evolved 2 slots: Propulsion x1, Weapon x1 629 | -9/Materials | Discovered new exit (range 16) 676 | -9/Materials | Entered another Materials area 676 | -8/Materials | Evolved 2 slots: Utility x1, Weapon x1 782 | -8/Materials | Build established: Tank 783 | -8/Materials | Garrison activated, responded to threat 893 | -8/Materials | Core integrity fell below 50% 944 | -8/Materials | Lost 18 parts (2p2n2u12w) 1065 | -8/Materials | Core integrity fell below 20% 1091 | -8/Materials | Destroyed by G-47 Trooper with Particle Gun Last Messages --------------- 01063_ K-01 Serf cleans the Terminal. 01065_ Acquired Lgt. Assault Rifle. 01067_ G-47 Trooper destroyed. 01070_ Slug penetrates Wall. 01070_ R-06 Scavenger collects Aluminum Leg. 01070_ K-01 Serf collects debris. 01073_ Slug penetrates Wall. 01073_ R-06 Scavenger collects Imp. Heat Sink. 01073_ K-01 Serf collects debris. 01076_ Slug penetrates Wall. 01076_ R-06 Scavenger collects Lgt. Treads. 01078_ K-01 Serf collects debris. 01080_ R-06 Scavenger collects Flight Unit. 01082_ Slug penetrates Wall. 01083_ K-01 Serf collects debris. 01083_ Aluminum Leg destroyed. 01085_ Slug penetrates Wall. 01087_ K-01 Serf collects debris. 01088_ Slug penetrates Wall. 01091_ Lgt. Assault Rifle destroyed. Map ----- +----------------------------------------------------+ | ?????????????????????????????????????????????????? | | ?????????????????????????????????????????????????? | | ?????????????????????????????????????????????????? | | ?????????????????????????????????????????????????? | | ?????????????????????????????????????????????????? | | ?????????????????????????????????????????????????? | | ?????????????????????????????????????????????????? | | ?????????????????????????????????????????????????? | | ??????????????????????? ????????????????????????? | | ??????????????????????? ????????????????????????? | | ???????????????????????% ????????????????????????? | | ??????????????????????? ????????????????????????? | | ??????????????????????? ????????????????????????? | | ??????????????????????? #????????????????????????? | | ??????????????????????? #????????????????????????? | | ??????????????######### #????????????????????????? | | ?????????????##"""T"""# #????????????????????????? | | ?????????????# #????????????????????????? | | #??????????### ######???????????????????? | | #??????????#"" " #! #???????????????????? | | #??????????#"T T #%= #???????????????????? | | #??????????#"" "% #%==*#???????????????????? | | ############## [ * %# g k#???????????????????? | | [=%h %= #???????????????????? | | ####% #???????????????????? | | % % #??#@= #???????????????????? | | ############ ######/#####%% #???????????????????? | | # #?# #?# # #???????????????????? | | # """ #?# #?# ######???????????????????? | | # """ #?# #?#! [ #????????????????????????? | | # """ #?# #?# #????????????????????????? | | + #?# #?# ! #????????????????????????? | | # """ #?# #?# #????????????????????????? | | # """ #?? ??# #????????????????????????? | | # """ #?? ??#[ #????????????????????????? | | # #?? ??# % #????????????????????????? | | #########??? ??##########????????????????????????? | | #??????????? ????????????????????????????????????? | | #??????????? ????????????????????????????????????? | | #??????????? ????????????????????????????????????? | | #????????????????????????????????????????????????? | | #????????????????????????????????????????????????? | | #????????????????????????????????????????????????? | | #????????????????????????????????????????????????? | | #????????????????????????????????????????????????? | | ?????????????????????????????????????????????????? | | ?????????????????????????????????????????????????? | | ?????????????????????????????????????????????????? | | ?????????????????????????????????????????????????? | | ?????????????????????????????????????????????????? | +----------------------------------------------------+ Best States ------------- Heat Dissipation 53 Energy Generation 12 Energy Capacity 265 Matter Stores 300 Matter Capacity 300 Sight Range 16 Terrain Scan Range 14 Terrain Scan Density 10 Armor Coverage 225 Evasion (%) 50 Recoil Reduction 2 Item Schematics ----------------- None Robot Schematics ------------------ None Fabricated ------------ Nothing Alien Tech Used ----------------- None Achievements -------------- None Challenges ------------ None Game ------ Seed TiamatWeightTrap Manual? 0 Play Time 00:15:37 Cumulative 34.2 hours Start 2020.06.12 @ 20:16:16 End 2020.06.13 @ 09:03:45 Sessions 2 Manual Loads 0 Difficulty Rogue Special Mode None Game No. 73 Rogue 73 Adventurer 0 Explorer 0 Win Type - Total 0 Types 0/0/0/0/0/0/0 Lore% 24 Gallery% 25 Achievement% 22 Wizard Run 0 Options --------- ASCII 0 Keyboard 0 Movement Numpad Keybinds 0 Fullscreen 1 Font 18/SmallcapsGlow Map View 76x50 Tactical HUD 1 Map Filters NONE Filters NONE Steam 1 RUN: 7ab39e65-5ea7-4cdb-98a6-9712f6b6aff5